Cogmind - Beta 16 @@@ ROGUE MODE // 2025.11.25 @ 04:54:38 Player: Shimejimeji Result: Destroyed by G-47 Trooper with Particle Gun Performance ------------- Evolutions (0) 0 Regions Visited (1) 200 Robots Destroyed (12) 60 Value Destroyed (190) 190 Prototype IDs (2) 40 Alien Tech Used (0) 0 Bonus (0) 0 TOTAL SCORE: 490 Bonus ------- None Cogmind --------- Core Integrity 0/250 Matter 278/300 Energy 238/250 System Corruption 0% Temperature Hot (252) Movement Rolling (105) Ox1 Location -10/Materials Parts ------- > --- POWER (1) -------- Ion Engine > --- PROPULSION (2) --- Wheel Compact Wheel > --- UTILITY (2) ------ Large Storage Unit > --- WEAPON (2) ------- Beam Cannon > --- INVENTORY (15) --- Aluminum Leg Aluminum Leg Signal Interpreter Seismic Detector EM Pulse Gun Grenade Launcher Mining Laser Peak State ------------ > --- POWER ------------ Ion Engine > --- PROPULSION ------- Wheel Wheel > --- UTILITY ---------- Small Storage Unit Seismic Detector > --- WEAPON ----------- EM Pulse Gun Light Assault Rifle > --- INVENTORY -------- Ion Engine Aluminum Leg Aluminum Leg Compact Wheel Small Laser Mining Laser [Rating: 7] Favorites ----------- Power Ion Engine Engine Ion Engine Propulsion Wheel Wheel Wheel Utility Seismic Detector Device Seismic Detector Storage Small Storage Unit Weapon Light Assault Rifle Energy Gun EM Pulse Gun Energy Cannon Beam Cannon Ballistic Gun Light Assault Rifle Special Weapon Mining Laser Build | -11 -10 ------- Run | Yrd Mat Slots Evolved . | . . Power . | . . Propulsion . | . . Utility . | . . Weapon . | . . Parts Attached 15 | 7 8 Power 2 | 1 1 Engine 2 | 1 1 Core . | . . Reactor . | . . Propulsion 3 | 2 1 Treads . | . . Leg . | . . Wheel 3 | 2 1 Hover . | . . Flight . | . . Utility 5 | 2 3 Device 2 | 1 1 Storage 3 | 1 2 Processor . | . . Hackware . | . . Protection . | . . Artifact . | . . Weapon 5 | 2 3 Energy Gun 1 | 1 . Energy Cannon 1 | . 1 Ballistic Gun 2 | 1 1 Ballistic Cannon . | . . Launcher . | . . Special Weapon 1 | . 1 Impact Weapon . | . . Slashing Weapon . | . . Piercing Weapon . | . . Special Melee Weapon . | . . Unidentified Prototypes . | . . Parts Lost 5 | . 5 Power 1 | . 1 Propulsion 1 | . 1 Utility 1 | . 1 Weapon 2 | . 2 Highest Loss Streak 2 | . 2 To Critical Strikes . | . . Average Backups 6 | 4 7 Power . | . . Propulsion 2 | 2 2 Utility . | . . Weapon 2 | 1 3 Tool/Special . | . . Unused Backups 5 | . 5 Power . | . . Propulsion 2 | . 2 Utility 1 | . 1 Weapon 2 | . 2 Tool/Special . | . . Average Slot Usage (%) 99 | . 99 Engine 14 | . 14 Wheel 27 | . 27 Device 13 | . 13 Storage 14 | . 14 Energy Gun 6 | . 6 Energy Cannon 2 | . 2 Ballistic Gun 19 | . 19 Peak Build Rating 7 | 7 7 Average Rating 6 | 5 6 On Entrance 3 | . 7 Avg Prop Armor Cover (%) . | . . Naked Turns . | . . Heaviest Build 30 | 14 30 Greatest Support 26 | 20 26 Greatest Overweight (x) 1 | 1 1 Average Overweight (x) . | . . Largest Inventory Capacity 15 | 8 15 Average Capacity 10 | 7 11 Most Carried 9 | 6 9 Average Carried 6 | 4 7 Final Capacity 15 | 8 15 Final Carried 7 | 6 7 Class Distribution -------------------- 100% | Mutant Dominant Class ---------------- Mutant | -10/Materials Resources | -11 -10 ----------- Run | Yrd Mat Matter Collected 371 | 275 96 Remotely . | . . Salvage Created 387 | 104 283 Parts 27 | 9 18 Haulers Intercepted 2 | . 2 Recyclers Shooed 1 | 1 . Parts Field Recycled . | . . Retrieved Matter . | . . Parts Self-Destructed . | . . Prevented . | . . Parts Restored . | . . Kills | -11 -10 ------- Run | Yrd Mat Combat Hostiles Destroyed 7 | . 7 Guns 5 | . 5 Cannons 2 | . 2 Classes Destroyed 5 | 2 3 Tunneler 2 | 2 . Hauler 2 | . 2 Recycler 1 | 1 . Swarmer 3 | . 3 Grunt 4 | . 4 Best Kill Streak 3 | 3 3 Combat Bots Only 3 | . 3 Max Kills in Single Turn 2 | 1 2 Gunslinging 1 | . 1 Exploded . | . . Melee . | . . Uniques/NPCs Destroyed . | . . Combat | -11 -10 -------- Run | Yrd Mat Hostile Shots Fired 54 | . 54 Missed 7 | . 7 Hits 47 | . 47 Projectile 47 | . 47 Critical Strikes 1 | . 1 Damage Taken 735 | 30 705 Core 255 | . 255 Absorbed by Shields . | . . Core Remaining (%) 100 | 100 . Volleys Fired 45 | 5 40 Largest 2 | 2 2 Hottest 100 | 60 100 Shots Fired 87 | 10 77 Gun 77 | 10 67 Cannon 9 | . 9 Launcher . | . . Special 1 | . 1 Kinetic 58 | 5 53 Thermal 10 | . 10 Explosive . | . . Electromagnetic 19 | 5 14 Robot Hit Streak 13 | 4 13 Robot Miss Streak 3 | 1 3 Penetration Max . | . . Secondary Targets 1 | . 1 Max Gunslinging Chain 1 | . 1 Shots Hit Robots 65 | 7 58 Core Hits 18 | 3 15 Critical Kills . | . . Critical Parts Destroyed . | . . Critical Strikes . | . . Melee Attacks . | . . Impact . | . . Slashing . | . . Piercing . | . . Sneak Attacks . | . . Combat Hostiles . | . . Follow-up Attacks . | . . Damage Inflicted 710 | 145 565 Guns 523 | 82 441 Cannons 124 | . 124 Explosions 63 | 63 . Melee . | . . Ramming . | . . Kinetic 364 | 28 336 Thermal 187 | 63 124 Explosive . | . . Electromagnetic 159 | 54 105 Impact . | . . Slashing . | . . Piercing . | . . Highest Corruption . | . . Average Corruption . | . . Corruption Purged . | . . Corruption Blocked . | . . Overload Shots . | . . Overflow Damage . | . . Projectiles . | . . Explosions . | . . Melee . | . . Knockbacks . | . . Impact . | . . Kinetic . | . . Secondary . | . . Self-Inflicted Damage 30 | 30 . Shots 1 | 1 . Rammed . | . . Targets Rammed . | . . Kicked . | . . Crushed . | . . Highest Temperature 237 | 32 237 Average Temperature 39 | 16 42 Received Heat Transfer 285 | . 285 Siege Activations . | . . Martial Activations . | . . Shielding Activations . | . . Robots Disrupted . | . . Combat Hostiles . | . . Robots Corrupted . | . . Combat Hostiles . | . . Parts Fried 1 | . 1 Impact Corruptions . | . . Robots Melted . | . . Combat Hostiles . | . . Parts Melted . | . . Heat Transferred 359 | 100 259 Parts Sabotaged . | . . Parts Stolen . | . . Parts Stripped . | . . Power Chain Reactions 1 | 1 . Alert | -11 -10 ------- Run | Yrd Mat Maximum Alert Level . | . . Low Security (%) 100 | 100 100 Level 1 . | . . Level 2 . | . . Level 3 . | . . Level 4 . | . . Level 5 . | . . High Security . | . . Max Security . | . . Peak Influence 85 | 5 85 Initial . | . . Average 22 | 1 27 Influence Increases 235 | 15 220 Destroy 0b10 Robot/C 140 | . 140 Destroy 0b10 Robot/NC 25 | 15 10 Destroy Leader 24 | . 24 Destroy Structure 1 | . 1 Lose Combat Pursuer 45 | . 45 Influence Decreases 207 | 15 192 Time Decay 177 | 15 162 Lost Part 30 | . 30 Squads Dispatched 1 | . 1 Investigation . | . . Extermination . | . . Reinforcement 1 | . 1 Assault . | . . Garrison . | . . Intercept . | . . Searches Triggered . | . . Construction Impeded . | . . Haulers Reinforced . | . . Active Scanning Responses . | . . Cargo Convoy Interrupts . | . . Stealth | -11 -10 --------- Run | Yrd Mat Distress Signals 2 | . 2 Communications Jammed . | . . Distress Signals . | . . Times Spotted 15 | . 15 Peak Tracking Total 4 | . 4 Tactical Retreats 3 | . 3 Traps | -11 -10 ------- Run | Yrd Mat Traps Triggered 1 | . 1 Indirectly . | . . Trap Hack Attempts . | . . Triggered . | . . Disarmed 6 | . 6 Reprogrammed . | . . Reused . | . . Traps Extracted . | . . Installed . | . . Triggered . | . . Machines | -11 -10 ---------- Run | Yrd Mat Machines Disabled . | . . Max in Single Turn . | . . Machines Repaired . | . . Machines Dismantled . | . . Machines Sabotaged . | . . Overloaded Fab Kills . | . . Hacking | -11 -10 --------- Run | Yrd Mat Machines Accessed 4 | . 4 Terminals 3 | . 3 Fabricators . | . . Repair Stations . | . . Recycling Units 1 | . 1 Scanalyzers . | . . Garrison Access . | . . Total Hacks 8 | . 8 Successful 5 | . 5 Failed 3 | . 3 Catastrophic . | . . Database Lockouts . | . . Manual 3 | . 3 Terminals 7 | . 7 Fabricators . | . . Repair Stations . | . . Recycling Units 1 | . 1 Scanalyzers . | . . Garrison Access . | . . Terminal Hacks 4 | . 4 Record 1 | . 1 Prototype ID Bank 1 | . 1 Disarm Traps 1 | . 1 Maintenance Status 1 | . 1 Fabricator Hacks . | . . Repair Station Hacks . | . . Recycling Unit Hacks 1 | . 1 Report Inventory 1 | . 1 Scanalyzer . | . . Garrison Access Hacks . | . . Unauthorized Hacks . | . . Terminals . | . . Fabricators . | . . Repair Stations . | . . Recycling Units . | . . Scanalyzers . | . . Garrison Access . | . . Data Cores Recovered . | . . Used . | . . Hacking Detections 2 | . 2 Full Trace Events . | . . Feedback Events . | . . Feedback Blocked . | . . Robot Schematics Acquired . | . . Robots Built . | . . Authchips . | . . Time . | . . Total Robot Build Rating . | . . Part Schematics Acquired . | . . Parts Built . | . . Authchips . | . . Time . | . . Total Part Build Rating . | . . Part Studies Acquired . | . . Parts Repaired . | . . Time . | . . Parts Recycled . | . . Recycled Matter . | . . Retrieved Matter . | . . Retrieved Components . | . . Parts Scanalyzed . | . . Part Schematics Acquired . | . . Parts Damaged . | . . Bothacking | -11 -10 ------------ Run | Yrd Mat Used RIF Installer . | . . Robots Hacked . | . . Non-combat . | . . Combat . | . . Robot Hacks Applied . | . . Relay Couplers Released . | . . Fabnet Peak Effective % . | . . Robots Rewired . | . . Allies Hacked . | . . Hacks Repelled . | . . Allies | -11 -10 -------- Run | Yrd Mat Total Allies . | . . Largest Group . | . . Highest-Rated Group . | . . Highest-Rated Ally . | . . Total Orders . | . . Ally Attacks . | . . Total Damage . | . . Kills . | . . Allies Corrupted . | . . Allies Melted . | . . Intel | -11 -10 ------- Run | Yrd Mat Active Infowar (turns) 471 | 35 436 Seismic 471 | 35 436 Robot Analysis Total . | . . Derelict Logs Recovered . | . . Drone Launches . | . . Drone Recoveries . | . . Exploration | -11 -10 ------------- Run | Yrd Mat Turns Passed 567 | 106 461 Spaces Moved 384 | 95 289 Core 6 | 6 . Treads . | . . Legs . | . . Wheels 378 | 89 289 Hover . | . . Flight . | . . Fastest Speed 50 | 50 80 Average Speed 86 | 80 89 Slowest Speed 105 | 100 105 Overloaded Moves . | . . Propulsion Burnouts . | . . Robots Hopped . | . . Potential Cave-ins . | . . Cave-ins Triggered . | . . Exploration Rate (%) 32 | 5 59 Regions Visited 1 Branch Regions . Pre-discovered Areas . | . . Known Exits Taken . | . . Unknown Exits Taken 1 | 1 . Scrap Searched . | . . Spaces Dug 1 | . 1 Terrain Destroyed 4 | 3 1 Melee . | . . Projectile 1 | . 1 AOE 3 | 3 . Terrain Rammed . | . . Walls Destroyed . | . . Machines Disabled . | . . Actions | -11 -10 --------- Run | Yrd Mat Total 536 | 112 424 Wait 78 | . 78 Move 383 | 94 289 Hop . | . . Pick Up 11 | 6 5 Fast Attach 7 | 7 . Attach 3 | . 3 Detach . | . . Swap 6 | . 6 Drop 3 | . 3 Fire 45 | 5 40 Melee . | . . Ram . | . . Kick . | . . Crush . | . . Escape Stasis . | . . Rewire . | . . Trap . | . . Miscellaneous . | . . Route ------- -11/Scrapyard -10/Materials (discovered 2 exits: [*Mat] / [*Min]) History --------- Turn | Location | Event 13 | -11/Scrapyard | Discovered new exit (range 16) 107 | -11/Scrapyard | Entered Materials 324 | -10/Materials | Build established: Mutant 335 | -10/Materials | Discovered new exit (range 14) 349 | -10/Materials | Core integrity fell below 50% 535 | -10/Materials | Discovered new exit (range 11) 559 | -10/Materials | Core integrity fell below 20% 568 | -10/Materials | Destroyed by G-47 Trooper with Particle Gun Last Messages --------------- O-16 Technician: "IFF HANDSHAKE FAILED. SECURING TERMINAL." O-16 Technician uses terminal to summon reinforcements. ALERT: Hostiles spotted, dispatching reinforcements to Terminal M001. O-16 Technician locks terminal. O-16 Technician sends out distress signal. Ion Engine destroyed. Lgt. Assault Rifle destroyed. G-34 Mercenary destroyed. Acquired 49 matter. Acquired Heat Sink. G-34 Mercenary destroyed. R-06 Scavenger collects Aluminum Leg. R-06 Scavenger collects Sml. Laser. K-01 Serf cleans the Terminal. EXIT=FOUND K-01 Serf collects debris. W-16 Scout sends out distress signal. Heat Sink destroyed. Lgt. Assault Rifle destroyed. Critical hit (Burn: +37). Map ----- +----------------------------------------------------+ | #??# ?# """ #????????????????????????? | | #??######?# #????????????????????????? | | ##????????# #????????????????????????? | | #????????# """ #????????????????????????? | | #????????# """ ?????????????????????????? | | T #????????# """ ???????????????????????????? | | #????????# "??? ???????????????????????????? | | #????????# ???? ????????????????????????????? | | ##????????? ?????????????????????????????????? | | #?????????? ?????????????????????????????????? | | #?????????? ?? ?????????????????????????? | | #?????????# ## ##???????????????????????? | | #?????????# # ???????????????????????? | | #?????????# # ""??????????????????????? | | #?????????# # ||#?????????????????????? | | #?????????# # < ""??????????????????????? | | #?????????# # !!#?????????????????????? | | #?????????# # ""??????????????????????? | | #?????????+ # ???????????????????????? | | #?????????# ## #????????????????????????? | | #?????????# ########?????????????????? | | ########### # ##????????????????? | | ^ # + ????????????????? | | #g""" #?????????????????? | | # """ #?????????????????? | | #@""" #?????????????????? | | kg #?????????????????? | | ############ ##### ########?????????????????? | | ############+##??# ???????????????????? | | # #??#%= ????????????????? | | # #??#* "T" ????????????????? | | # """ """ """ #??# ???????????????? | | + """ """ """ #??# ???????????????? | | # """ """ """ #??# ???????????????? | | # #??# ??????????????? | | ############"##### ??????????????? | | "?????????????? | | T?????????????? | | "?????????????? | | ####################T## "?????????????? | | #????????????????????#? ? ???????????????? | | !#??????????????????????????? ???????????????? | | !##??????????????????????????????????????????????? | | ##???????????????????????????????????????????????? | | ?????????????????????????????????????????????????? | | ?????????????????????????????????????????????????? | | ?????????????????????????????????????????????????? | | ?????????????????????????????????????????????????? | | ?????????????????????????????????????????????????? | | ?????????????????????????????????????????????????? | +----------------------------------------------------+ Best States ------------- Heat Dissipation 35 Energy Generation 10 Energy Capacity 250 Matter Stores 300 Matter Capacity 300 Sight Range 16 Terrain Scan Density 10 Evasion (%) 44 Item Schematics ----------------- None Robot Schematics ------------------ None Fabricated ------------ Nothing Repaired ---------- Nothing Studied --------- None Alien Tech Used ----------------- None Achievements -------------- None Challenges ------------ None Game ------ Seed SlugBehemothLoader Manual? 0 Play Time 00:15:10 Cumulative 10.3 hours Start 2025.11.25 @ 04:13:38 End 2025.11.25 @ 04:54:38 Sessions 1 Manual Loads 0 Difficulty Rogue Special Mode None Game No. 9 Rogue 9 Adventurer 0 Explorer 0 Win Type - Total 0 Types 0/0/0/0/0/0/0/0/0/0 Lore% 8 Gallery% 10 Achievement% 12 Wizard Run 0 Options --------- Layout 0 ASCII 0 Keyboard 1 Movement Arrows Keybinds 0 Fullscreen 2 Font 18/SmallcapsGlow Map View 76x50 Zoom Use 0% Tactical HUD 0 Map Filters NONE Filters NONE Steam 1 RUN: b97cc335-d2cf-4fbe-98aa-cfc86834208c